bitfinex-derivatives/quotes_BNBF0:USTF0_20250115
["timestamp","ask_amount","ask_price","bid_price","bid_amount"]
[1736924008976,1.06506738,700.35,699.13,0.28606982]
[1736924009977,1.06506738,700.36,699.13,0.28606982]
[1736924012274,0.26259543,700.35,699.13,0.28606982]
[1736924012475,1.06506738,700.36,699.13,0.28606982]
[1736924013681,0.28555926,700.38,699.13,0.28606982]
[1736924034990,1.06506738,700.36,699.13,0.28606982]
[1736924036196,1.06506738,700.33,699.13,0.28606982]
[1736924036397,0.2626076,700.32,699.13,0.28606982]
[1736924036998,1.06506738,700.21,699.2,1.0674255]
[1736924037892,1.06506738,700.22,699.19,1.0674255]
[1736924038999,1.06506738,700.23,699.18,1.0674255]
[1736924039997,1.06506738,700.24,699.19,1.0674255]
[1736924040998,1.06506738,700.26,699.14,1.0674255]
[1736924041899,1.06506738,700.33,699.13,0.28606982]
[1736924043204,1.06506738,700.32,699.13,0.28606982]
[1736924045601,1.06506738,700.34,699.13,0.28606982]
[1736924046905,1.06506738,700.35,699.13,0.28606982]
[1736924047604,1.06506738,700.34,699.13,0.28606982]
[1736924048410,1.06506738,700.35,699.13,0.28606982]
[1736924050814,1.06506738,700.33,699.13,0.28606982]
[1736924051613,0.28555926,700.38,699.13,0.28606982]
[1736924051614,1.06506738,700.28,699.14,1.0674255]
[1736924052913,0.28555926,700.38,699.13,1.35349532]
[1736924052914,1.06506738,700.26,699.13,1.35349532]
[1736924054713,1.06506738,700.21,699.22,1.0674255]
[1736924055810,1.06506738,700.2,699.22,1.0674255]
[1736924057011,1.06506738,700.21,699.24,1.0674255]
[1736924058015,1.06506738,700.18,699.28,1.0674255]
[1736924059214,1.06506738,700.18,699.29,1.0674255]
[1736924060415,1.06506738,700.17,699.28,1.0674255]
[1736924062218,1.06506738,700.17,699.29,1.0674255]
[1736924063220,1.06506738,700.28,699.13,0.28606982]
[1736924064223,1.06506738,700.29,699.13,0.28606982]
[1736924067521,0.28555926,700.38,699.13,0.28606982]
[1736924068723,1.07063336,700.29,699.13,0.28606982]
[1736924069727,0.28555926,700.38,699.13,0.28606982]
[1736924069728,1.07063336,700.28,699.13,0.28606982]
[1736924072724,1.07063336,700.21,699.2,1.071555]
[1736924074830,1.07063336,700.21,699.13,0.28606982]
[1736924074831,1.07063336,700.13,699.26,1.071555]
[1736924075732,1.07063336,700.14,699.26,1.071555]
[1736924076925,0.82252861,700.37,699.17,1.071555]
[1736924076926,1.07063336,700.15,699.25,1.071555]
[1736924078032,1.07063336,700.17,699.22,1.071555]
[1736924079136,1.07063336,700.18,699.2,1.071555]
[1736924080126,1.35619262,700.38,699.13,1.35762482]
[1736924080127,1.07063336,700.23,699.13,1.35762482]
[1736924081232,1.07063336,700.23,699.13,0.28606982]
[1736924084635,1.07063336,700.24,699.13,0.28606982]
[1736924085534,0.28555926,700.38,699.13,0.28606982]
[1736924085535,1.07063336,700.23,699.13,0.28606982]
[1736924086935,0.28555926,700.38,699.13,0.28606982]
[1736924086936,1.07063336,700.19,699.13,0.28606982]
[1736924087935,1.07063336,700.18,699.13,0.28606982]
[1736924089238,1.07063336,700.19,699.13,0.28606982]
[1736924090434,1.07063336,700.14,699.13,0.28606982]
[1736924091236,1.07063336,700.15,699.13,0.28606982]
[1736924095535,1.07063336,700.16,699.13,0.28606982]
[1736924097644,1.07063336,700.17,699.13,0.28606982]
[1736924098944,1.07063336,700.21,699.13,0.28606982]
[1736924101043,1.07063336,700.2,699.13,0.28606982]
[1736924102045,1.07063336,700.22,699.13,0.28606982]
[1736924104237,1.07063336,700.23,699.13,0.28606982]
[1736924105744,0.26265969,700.22,699.13,0.28606982]
[1736924106144,0.26265981,700.21,699.13,0.28606982]
[1736924106341,0.26265981,700.2,699.13,0.28606982]
[1736924106543,1.07063336,700.18,699.13,0.28606982]
[1736924107840,1.07063336,700.26,699.13,0.28606982]
[1736924108546,0.2626648,700.25,699.13,0.28606982]
[1736924109044,1.07063336,700.23,699.13,0.28606982]
[1736924110539,1.07063336,700.2,699.13,0.28606982]
[1736924110742,0.26268676,700.19,699.13,0.28606982]
[1736924111341,1.07063336,700.14,699.13,0.28606982]
[1736924111845,0.26270588,700.13,699.13,0.28606982]
[1736924112144,1.07063336,700.14,699.13,0.28606982]
[1736924113440,0.28555926,700.38,699.13,0.28606982]
[1736924121946,0.26272454,700.37,699.13,0.28606982]
[1736924122146,0.28556742,700.36,699.13,0.28606982]
[1736924122345,0.26272454,700.35,699.13,0.28606982]
[1736924122550,0.28557557,700.34,699.13,0.28606982]
[1736924122746,1.07063336,700.2,699.13,0.28606982]
[1736924122949,0.26272567,700.19,699.13,0.28606982]
[1736924123549,1.33335903,700.19,699.13,0.28606982]
[1736924123751,0.26272567,700.18,699.13,0.28606982]
[1736924124751,1.07063336,700.16,699.13,0.28606982]
[1736924124947,0.26272567,700.15,699.13,0.28606982]
[1736924125549,1.33335903,700.15,699.13,0.28606982]
[1736924125745,0.26272215,700.14,699.13,0.28606982]
[1736924126946,1.07063336,700.1,699.13,0.28606982]
[1736924127149,0.26272215,700.09,699.13,0.28606982]
[1736924128047,0.26272215,700.08,699.13,0.28606982]
[1736924128345,1.07063336,700.11,699.13,0.28606982]
[1736924128550,0.26272379,700.1,699.13,0.28606982]
[1736924129352,0.26272379,700.09,699.13,0.28606982]
[1736924129549,0.26272379,700.08,699.13,0.28606982]
[1736924129748,0.26272379,700.07,699.13,0.28606982]
[1736924129954,1.07063336,700.13,699.13,0.28606982]
[1736924130146,0.26272439,700.12,699.13,0.28606982]
[1736924131146,1.07063336,700.13,699.13,0.28606982]
[1736924131347,0.26272303,700.12,699.13,0.28606982]
[1736924131746,1.33335639,700.12,699.13,0.28606982]
[1736924131946,1.07063336,700.12,699.13,0.28606982]
[1736924132153,0.26272212,700.11,699.13,0.28606982]
[1736924132947,1.07063336,700.1,699.13,0.28606982]
[1736924133148,0.26272212,700.09,699.13,0.28606982]
[1736924133953,1.07063336,700.11,699.13,0.28606982]
[1736924134155,0.26271528,700.1,699.13,0.28606982]
[1736924134952,0.26271825,700.09,699.13,0.28606982]
[1736924135149,0.26271825,700.08,699.13,0.28606982]
[1736924135354,1.07063336,700.11,699.13,0.28606982]
[1736924135554,1.07063336,700.1,699.13,0.28606982]
[1736924136752,1.07063336,700.17,699.13,0.28606982]
[1736924136949,0.26272051,700.16,699.13,0.28606982]
[1736924137855,1.07063336,700.15,699.13,0.28606982]
[1736924138554,0.26272033,700.14,699.13,0.28606982]
[1736924138947,1.07063336,700.12,699.13,0.28606982]
[1736924140753,1.07063336,700.09,699.13,0.28606982]
[1736924141750,1.07063336,700.1,699.13,0.28606982]
[1736924142755,1.07063336,700.09,699.13,0.28606982]
[1736924143758,1.07063336,700.1,699.13,0.28606982]
[1736924144654,1.07063336,700.08,699.13,0.28606982]
[1736924145759,1.07063336,700.07,699.13,0.28606982]
[1736924146961,1.07063336,699.99,699.13,0.28606982]
[1736924147860,1.07063336,700.04,699.13,0.28606982]
[1736924150866,1.07063336,700.02,699.13,0.28606982]
[1736924151671,1.07063336,700.03,699.13,0.28606982]
[1736924152769,0.28558781,700.31,699.13,0.28606982]
[1736924152770,1.07063336,700.04,699.13,0.28606982]
[1736924153970,0.28558781,700.31,699.13,0.28606982]
[1736924153971,1.07063336,700.02,699.13,0.28606982]
[1736924154973,1.07063336,700.01,699.13,0.28606982]
[1736924156369,1.07063336,700.0,699.13,0.28606982]
[1736924158579,1.07063336,699.96,699.13,0.28606982]
[1736924160172,1.07063336,699.97,699.13,0.28606982]
[1736924161372,1.07063336,699.96,699.13,0.28606982]
[1736924163578,1.07063336,699.95,699.13,0.28606982]
[1736924164281,1.07063336,699.96,699.13,0.28606982]
[1736924166178,0.8216472,700.3,699.13,0.28606982]
[1736924166179,1.07063336,699.94,699.13,0.28606982]
[1736924167282,1.07063336,699.93,699.13,0.28606982]
[1736924170782,1.07063336,699.92,699.13,0.28606982]
[1736924172682,1.07063336,699.91,699.13,0.28606982]
[1736924174384,1.07063336,699.93,699.13,0.28606982]
[1736924175291,1.07063336,699.94,699.13,0.28606982]
[1736924176383,1.07063336,699.93,699.13,0.28606982]
[1736924178783,1.07063336,700.21,699.13,0.28606982]
[1736924179587,1.07063336,700.22,699.13,0.28606982]
[1736924183692,0.28558781,700.31,699.13,0.28606982]
[1736924185695,1.07063336,700.3,699.13,0.28606982]
[1736924185993,0.28559596,700.29,699.13,0.28606982]
[1736924234822,0.26264688,700.28,699.13,0.28606982]
[1736924235720,1.07063336,700.23,699.13,0.28606982]
[1736924235920,0.26264688,700.22,699.13,0.28606982]
[1736924236727,1.07063336,700.21,699.13,0.28606982]
[1736924236927,0.26264688,700.2,699.13,0.28606982]
[1736924237630,1.33328024,700.2,699.13,0.28606982]
[1736924237829,1.07063336,700.2,699.13,0.28606982]
[1736924239830,1.07063336,700.19,699.13,0.28606982]
[1736924240727,1.07063336,700.18,699.13,0.28606982]
[1736924243829,1.07063336,700.17,699.13,0.28606982]
[1736924244738,0.28559596,700.29,699.13,0.28606982]
[1736924252842,0.26268815,700.28,699.13,0.28606982]
[1736924253138,0.28560412,700.27,699.13,0.28606982]
[1736924253530,0.26269463,700.26,699.13,0.28606982]
[1736924253932,1.07063336,700.21,699.13,0.28606982]
[1736924254130,0.26269663,700.2,699.13,0.28606982]
[1736924254336,1.07063336,700.21,699.13,0.28606982]
[1736924254537,0.26269936,700.2,699.13,0.28606982]
[1736924255136,1.07063336,700.17,699.13,0.28606982]
[1736924257239,1.07063336,700.18,699.13,0.28606982]
[1736924259039,0.28561228,700.25,699.13,0.28606982]
[1736924259040,1.07063336,700.19,699.13,0.28606982]
[1736924260037,1.33333118,700.18,699.13,0.28606982]
[1736924260234,0.26269782,700.17,699.13,0.28606982]
[1736924261144,1.07063336,700.08,699.13,0.28606982]
[1736924262139,1.07063336,700.09,699.13,0.28606982]
[1736924262338,0.26269339,700.08,699.13,0.28606982]
[1736924262844,1.07063336,700.09,699.13,0.28606982]
[1736924263247,1.07063336,700.08,699.13,0.28606982]
[1736924264343,1.07063336,700.15,699.13,0.28606982]
[1736924265548,1.07063336,700.17,699.13,0.28606982]
[1736924268645,1.07063336,700.16,699.13,0.28606982]
[1736924269749,1.07063336,700.15,699.13,0.28606982]
[1736924272049,1.07063336,700.14,699.13,0.28606982]
[1736924273955,1.35624564,700.25,699.13,0.28606982]
[1736924275355,0.28561228,700.25,699.13,0.28606982]
[1736924287362,0.26264645,700.24,699.13,0.28606982]
[1736924287663,1.35624564,700.25,699.13,0.28606982]
[1736924287865,0.26264714,700.24,699.13,0.28606982]
[1736924288057,1.35624564,700.25,699.13,0.28606982]
[1736924288457,0.26264555,700.24,699.13,0.28606982]
[1736924289260,1.33327891,700.24,699.13,0.28606982]
[1736924289459,0.26264555,700.23,699.13,0.28606982]
[1736924289857,0.262646,700.22,699.13,0.28606982]
[1736924290058,1.07063336,700.24,699.13,0.28606982]
[1736924290261,1.33328205,700.23,699.13,0.28606982]
[1736924290462,0.26264869,700.22,699.13,0.28606982]
[1736924291059,1.07063336,700.21,699.13,0.28606982]
[1736924291259,0.26264869,700.2,699.13,0.28606982]
[1736924292362,1.33328205,700.2,699.13,0.28606982]
[1736924292563,0.26264869,700.19,699.13,0.28606982]
[1736924293869,1.07063336,700.16,699.13,0.28606982]
[1736924294466,0.26265736,700.15,699.13,0.28606982]
[1736924295370,1.07063336,700.16,699.13,0.28606982]
[1736924296071,1.07063336,700.14,699.13,0.28606982]
[1736924296970,1.07063336,700.16,699.13,0.28606982]
[1736924298271,1.07063336,700.15,699.13,0.28606982]
[1736924299474,1.07063336,700.14,699.13,0.28606982]
[1736924300170,0.26268995,700.13,699.13,0.28606982]
[1736924300775,0.26270335,700.12,699.13,0.28606982]
[1736924300976,1.07063336,700.09,699.13,0.28606982]
[1736924301175,0.26270335,700.08,699.13,0.28606982]
[1736924301376,1.07063336,700.09,699.13,0.28606982]
[1736924302073,1.07063336,700.07,699.13,0.28606982]
[1736924303376,1.07063336,700.09,699.13,0.28606982]
[1736924304170,1.07063336,700.1,699.13,0.28606982]
[1736924305177,1.07063336,700.11,699.13,0.28606982]
[1736924307682,1.07063336,700.13,699.13,0.28606982]
[1736924307879,0.26270814,700.12,699.13,0.28606982]
[1736924308979,1.07063336,700.13,699.13,0.28606982]
[1736924309175,0.26270589,700.12,699.13,0.28606982]
[1736924309978,1.33333925,700.12,699.13,0.28606982]
[1736924310280,0.26270589,700.11,699.13,0.28606982]
[1736924310880,1.33333925,700.11,699.13,0.28606982]
[1736924311080,0.26270589,700.1,699.13,0.28606982]
[1736924311879,1.33333962,700.09,699.13,0.28606982]
[1736924312075,0.26270626,700.08,699.13,0.28606982]
[1736924312682,0.26270584,700.07,699.13,0.28606982]
[1736924312875,0.26270584,700.06,699.13,0.28606982]
[1736924313081,0.26270584,700.05,699.13,0.28606982]
[1736924313280,0.26270584,700.04,699.13,0.28606982]
[1736924313483,0.26270584,700.03,699.13,0.28606982]
[1736924313684,0.26270584,700.02,699.13,0.28606982]
[1736924313981,1.07063336,700.09,699.13,0.28606982]
[1736924314185,0.26270602,700.08,699.13,0.28606982]
[1736924314589,1.07063336,700.09,699.13,0.28606982]
[1736924314783,0.26270556,700.08,699.13,0.28606982]
[1736924316686,1.07063336,700.07,699.13,0.28606982]
[1736924316889,0.26270556,700.06,699.13,0.28606982]
[1736924317494,0.26271244,700.05,699.13,0.28606982]
[1736924317692,0.26271244,700.04,699.13,0.28606982]
[1736924317885,0.26271244,700.03,699.13,0.28606982]
[1736924318091,0.26271244,700.02,699.13,0.28606982]
[1736924318392,0.26271244,700.01,699.13,0.28606982]
[1736924318592,1.07063336,700.07,699.13,0.28606982]
[1736924318791,0.26271312,700.06,699.13,0.28606982]
[1736924320190,0.26271281,700.05,699.13,0.28606982]
[1736924320389,0.26271281,700.04,699.13,0.28606982]
[1736924320593,0.26271281,700.03,699.13,0.28606982]
[1736924320790,0.26271281,700.02,699.13,0.28606982]
[1736924320995,0.26271299,700.01,699.13,0.28606982]
[1736924321189,1.07063336,700.06,699.13,0.28606982]
[1736924321392,0.26271299,700.05,699.13,0.28606982]
[1736924322889,1.33334635,700.05,699.13,0.28606982]
[1736924323094,0.26271299,700.04,699.13,0.28606982]
[1736924323298,1.07063336,700.05,699.13,0.28606982]
[1736924323997,1.07063336,700.08,699.13,0.28606982]
[1736924324197,0.26271077,700.07,699.13,0.28606982]
[1736924324801,1.07063336,700.07,699.13,0.28606982]
[1736924325995,1.07063336,700.09,699.13,0.28606982]
[1736924326395,0.26271066,700.08,699.13,0.28606982]
[1736924326593,1.07063336,700.09,699.13,0.28606982]
[1736924326995,1.07063336,700.07,699.13,0.28606982]
[1736924328498,0.28561228,700.25,699.13,0.28606982]
[1736924330301,1.35624564,700.25,699.13,0.28606982]
[1736924332498,1.07063336,700.23,699.13,0.28606982]
[1736924333502,1.07063336,700.21,699.13,0.28606982]
[1736924334401,1.07063336,700.19,699.13,0.28606982]
[1736924335304,1.07063336,700.15,699.13,0.28606982]
[1736924336600,1.07063336,700.13,699.13,0.28606982]
[1736924337402,1.07063336,699.99,699.13,0.28606982]
[1736924344710,1.07063336,700.0,699.13,0.28606982]
[1736924346011,1.07063336,699.97,699.13,0.28606982]
[1736924347309,1.07063336,699.9,699.13,0.28606982]
[1736924349907,1.07063336,699.89,699.13,0.28606982]
[1736924352406,1.07063336,699.9,699.13,0.28606982]
[1736924353210,1.07063336,699.91,699.13,0.28606982]
[1736924358715,1.07063336,699.92,699.13,0.28606982]
[1736924360009,1.07063336,699.97,699.13,0.28606982]
[1736924362419,1.07063336,700.01,699.13,0.28606982]
[1736924363419,1.07063336,700.0,699.13,0.28606982]
[1736924364319,1.07063336,700.02,699.13,0.28606982]
[1736924365315,1.07063336,700.03,699.13,0.28606982]
[1736924366420,1.07063336,700.04,699.13,0.28606982]
[1736924368821,1.07063336,700.05,699.13,0.28606982]
[1736924369723,1.07063336,700.03,699.13,0.28606982]
[1736924370822,1.07063336,700.05,699.13,0.28606982]
[1736924371922,1.07063336,700.04,699.13,0.28606982]
[1736924373019,1.07063336,699.98,699.13,0.28606982]
[1736924374023,1.07063336,700.0,699.13,0.28606982]
[1736924374919,1.07063336,700.01,699.13,0.28606982]
[1736924376126,1.07063336,700.0,699.13,0.28606982]
[1736924377120,1.07063336,699.98,699.13,0.28606982]
[1736924378126,1.07063336,700.04,699.13,0.28606982]
[1736924381530,1.07063336,700.03,699.13,0.28606982]
[1736924382325,1.07063336,700.02,699.13,0.28606982]
[1736924385230,1.07063336,700.03,699.13,0.28606982]
[1736924387433,1.07063336,699.97,699.13,0.28606982]
[1736924388932,1.07063336,699.97,698.95,1.071555]
[1736924389434,1.07063336,699.96,698.94,1.071555]
[1736924390029,1.07063336,699.96,698.42,2.18775814]
[1736924390030,1.07063336,699.94,698.92,1.071555]
[1736924391637,1.07063336,699.95,698.87,1.071555]
[1736924392736,1.07063336,699.96,698.87,1.071555]
[1736924393835,1.07063336,699.97,698.84,1.071555]
[1736924395935,1.07063336,699.99,698.81,1.071555]
[1736924396931,1.07063336,700.0,698.81,1.071555]
[1736924397633,1.07063336,700.0,698.82,1.071555]
[1736924397839,1.07063336,700.01,698.82,1.071555]
[1736924398838,1.07063336,700.02,698.83,1.071555]
[1736924399836,1.07063336,700.07,698.72,1.071555]
[1736924400038,1.07063336,700.07,698.73,0.28623359]
[1736924400741,1.07063336,700.06,698.73,1.35778859]
[1736924401835,0.28561228,700.25,698.73,1.35778859]
[1736924401836,1.07063336,700.07,698.73,1.35778859]
[1736924402537,1.07063336,700.08,698.74,1.071555]
[1736924402737,1.07063336,700.08,698.75,0.2862254]
[1736924404741,1.07063336,700.09,698.76,1.071555]
[1736924404941,1.07063336,700.09,698.77,0.28621721]
[1736924405741,1.07063336,700.06,698.77,1.35777221]
[1736924406738,0.28561228,700.25,698.79,1.071555]
[1736924406739,1.07063336,700.08,698.79,1.071555]
[1736924406941,1.07063336,700.08,698.8,0.28620492]
[1736924408042,1.07063336,700.09,698.81,1.071555]
[1736924408242,1.07063336,700.09,698.82,0.28619673]
[1736924408846,1.07063336,700.09,698.83,1.071555]
[1736924409943,1.07063336,700.02,698.95,1.071555]
[1736924411047,1.07063336,700.0,698.94,1.071555]
[1736924412248,1.07063336,699.99,698.95,1.071555]
[1736924413349,1.07063336,700.0,698.93,1.071555]
[1736924414147,1.07063336,700.0,698.91,1.071555]
[1736924415150,1.07063336,700.22,698.82,0.28619673]
[1736924416449,1.07063336,700.21,698.82,0.28619673]
[1736924417452,1.07063336,700.22,698.82,0.28619673]
[1736924420251,1.07063336,700.23,698.82,0.28619673]
[1736924422558,1.07063336,700.24,698.82,0.28619673]
[1736924423957,0.26270494,700.23,698.82,0.28619673]
[1736924424157,0.26270494,700.22,698.82,0.28619673]
[1736924424354,0.26270494,700.21,698.82,0.28619673]
[1736924424657,0.26270494,700.2,698.82,0.28619673]
[1736924424858,1.07063336,699.99,698.96,1.071555]
[1736924425761,1.07063336,700.05,698.86,1.071555]
[1736924426561,1.07063336,699.98,698.96,1.071555]
[1736924427962,1.07063336,699.96,698.97,1.071555]
[1736924429062,1.07063336,700.01,698.92,1.071555]
[1736924429865,1.07063336,700.05,698.86,1.071555]
[1736924431060,1.07063336,700.03,698.85,1.071555]
[1736924431265,1.07063336,700.03,698.86,0.28618035]
[1736924432265,1.07063336,700.06,698.88,1.071555]
[1736924433367,1.07063336,700.06,698.89,1.071555]
[1736924434264,1.07063336,700.05,698.89,1.071555]
[1736924437465,1.07063336,700.06,698.86,0.28618035]
[1736924438567,1.07063336,700.04,698.87,1.071555]
[1736924439771,1.07063336,700.03,698.88,1.071555]
[1736924440570,1.07063336,699.98,698.94,1.071555]
[1736924444071,1.07063336,699.99,698.94,1.071555]
[1736924445971,1.07063336,700.0,698.94,1.071555]
[1736924447076,1.07063336,699.95,699.01,1.071555]
[1736924448074,1.07063336,699.98,698.98,1.071555]
[1736924449176,1.07063336,699.98,698.86,0.28618035]
[1736924449177,1.07063336,699.98,698.96,1.071555]
[1736924451873,1.07063336,699.97,698.96,1.071555]
[1736924453076,1.07063336,699.96,698.97,1.071555]
[1736924454077,0.82293962,700.24,698.94,1.071555]
[1736924454078,1.07063336,699.97,698.94,1.071555]
[1736924455373,1.07063336,699.98,698.96,1.071555]
[1736924457678,1.07063336,699.98,698.86,1.35773535]
[1736924457679,1.07063336,699.96,699.0,1.071555]
[1736924458579,1.07063336,699.95,699.01,1.071555]
[1736924459579,1.07063336,699.94,699.01,1.071555]
[1736924460777,1.07063336,699.99,699.01,1.071555]
[1736924461983,1.07063336,700.0,698.91,1.071555]
[1736924463084,1.07063336,700.0,698.86,0.28618035]
[1736924463085,1.07063336,700.06,698.86,1.35773535]
[1736924463775,1.07063336,700.05,698.87,1.071555]
[1736924464882,1.07063336,700.05,698.86,1.35773535]
[1736924465882,1.07063336,700.05,698.87,1.071555]
[1736924466982,1.07063336,700.04,698.86,0.28618035]
[1736924468082,1.07063336,700.03,698.86,0.28618035]
[1736924470484,1.07063336,700.02,698.86,0.28618035]
[1736924471583,0.28561228,700.25,698.88,1.071555]
[1736924471584,1.07063336,699.99,698.88,1.071555]
[1736924473083,1.07063336,699.92,699.0,1.071555]
[1736924473984,0.8226612,700.24,698.86,0.28618035]
[1736924473985,1.07063336,699.95,698.94,1.071555]
[1736924475489,1.07063336,699.95,698.95,1.071555]
[1736924475688,1.07063336,699.96,698.95,1.071555]
[1736924476482,1.07063336,699.97,698.91,1.071555]
[1736924477388,1.07063336,699.97,698.92,1.071555]
[1736924479287,1.07063336,699.98,698.92,1.071555]
[1736924480192,1.07063336,700.03,698.96,1.071555]
[1736924480985,0.28561228,700.25,698.86,0.28618035]
[1736924483491,1.07063336,700.23,698.86,1.35773535]
[1736924484392,1.07063336,700.21,698.86,1.35773535]
[1736924485396,1.07063336,700.21,698.86,0.28618035]
[1736924486396,1.07063336,700.22,698.86,0.28618035]
[1736924487395,1.07063336,700.23,698.86,0.28618035]
[1736924489400,1.07063336,700.24,698.86,0.28618035]
[1736924491896,0.26267454,700.23,698.86,0.28618035]
[1736924492203,1.3333079,700.23,698.86,0.28618035]
[1736924492403,0.26267454,700.22,698.86,0.28618035]
[1736924492799,1.07063336,700.17,698.9,1.071555]
[1736924493004,1.07063336,700.17,698.91,0.28615987]
[1736924493799,1.07063336,700.16,698.93,1.071555]
[1736924494003,1.07063336,700.16,698.93,1.35770668]
[1736924495100,0.28561228,700.25,698.93,0.28615168]
[1736924498200,0.28561228,700.25,698.93,0.28615168]
[1736924504906,1.07063336,700.23,698.93,0.28615168]
[1736924506006,1.07063336,700.21,698.93,0.28615168]
[1736924507210,1.07063336,700.19,698.93,0.28615168]
[1736924509615,1.07063336,700.18,698.93,0.28615168]
[1736924510507,1.07063336,700.15,698.93,0.28615168]
[1736924511308,1.07063336,700.14,698.93,1.35770668]
[1736924512311,1.07063336,700.13,698.93,0.28615168]
[1736924513514,1.07063336,700.1,698.93,1.35770668]
[1736924514622,1.07063336,700.08,698.95,1.071555]
[1736924515618,1.07063336,700.07,698.96,1.071555]
[1736924516517,1.07063336,700.04,699.01,1.071555]
[1736924518615,1.07063336,700.03,699.01,1.071555]
[1736924519217,1.07063336,700.05,698.98,1.071555]
[1736924522419,1.07063336,700.04,699.01,1.071555]
[1736924523328,1.07063336,700.1,698.93,0.28615168]
[1736924524623,1.07063336,700.11,698.93,0.28615168]
[1736924525723,1.07063336,700.11,698.93,1.35770668]
[1736924526823,1.07063336,700.12,698.94,1.071555]
[1736924527627,1.07063336,700.11,698.93,0.28615168]
[1736924528619,1.07063336,700.1,698.95,1.071555]
[1736924530125,1.07063336,700.1,698.93,0.28615168]
[1736924530126,1.07063336,700.1,698.94,1.071555]
[1736924531327,1.07063336,700.1,698.96,1.071555]
[1736924532428,1.07063336,700.11,698.94,1.071555]
[1736924533629,1.07063336,700.1,698.98,1.071555]
[1736924534730,1.07063336,700.15,698.93,0.28615168]
[1736924535932,0.28561228,700.25,698.93,0.28615168]
[1736924542139,1.07063336,700.37,698.79,1.071555]
[1736924542340,0.26264171,700.36,698.79,1.071555]
[1736924543139,1.07063336,700.26,698.97,1.071555]
[1736924544041,1.07063336,700.27,698.97,1.071555]
[1736924545033,1.07063336,700.27,698.96,1.071555]
[1736924545639,0.26264185,700.26,698.96,1.071555]
[1736924545842,1.33327521,700.26,698.99,1.071555]
[1736924546041,0.26264185,700.25,698.99,1.071555]
[1736924546338,1.07063336,700.26,698.99,1.071555]
[1736924546537,0.26264141,700.25,698.99,1.071555]
[1736924546937,1.07063336,700.21,699.06,1.071555]
[1736924548039,1.07063336,700.21,698.97,1.071555]
[1736924548040,1.07063336,700.21,699.05,1.071555]
[1736924548237,1.07063336,700.22,699.05,1.071555]
[1736924549440,1.07063336,700.21,699.07,1.071555]
[1736924550445,1.07063336,700.21,698.56,2.18775814]
[1736924550446,1.07063336,700.2,699.08,1.071555]
[1736924551845,1.07063336,700.26,699.0,1.071555]
[1736924552744,1.07063336,700.26,698.42,2.18775814]
[1736924552745,1.07063336,700.25,699.01,1.071555]
[1736924556249,1.07063336,700.25,699.02,1.071555]
[1736924558655,1.07063336,700.28,698.98,1.071555]
[1736924560948,1.07063336,700.32,698.92,1.071555]
[1736924562051,1.07063336,700.31,698.98,1.071555]
[1736924563050,1.07063336,700.31,698.99,1.071555]
[1736924563856,1.07063336,700.31,698.34,2.18775814]
[1736924563857,1.07063336,700.31,698.98,1.071555]
[1736924565050,1.07063336,700.3,698.99,1.071555]
[1736924565954,1.07063336,700.29,699.0,1.071555]
[1736924566157,1.07063336,700.29,699.01,0.28611893]
[1736924566757,1.07063336,700.32,699.01,0.28611893]
[1736924567755,1.07063336,700.38,699.01,0.28611893]
[1736924570963,1.07063336,700.37,699.01,0.28611893]
[1736924573359,1.07063336,700.38,699.01,0.28611893]
[1736924575261,1.07063336,700.39,699.01,0.28611893]
[1736924576263,1.07063336,700.38,699.01,0.28611893]
[1736924577373,1.07063336,700.3,699.04,1.071555]
[1736924577569,1.07063336,700.3,699.05,0.28610256]
[1736924578269,1.07063336,700.35,699.05,0.28610256]
[1736924579172,1.07063336,700.36,699.05,0.28610256]
[1736924580976,1.07063336,700.37,699.05,0.28610256]
[1736924581766,0.28540441,700.76,699.05,0.28610256]
[1736924581767,1.07063336,700.35,699.05,0.28610256]
[1736924582872,1.07063336,700.34,699.05,0.28610256]
[1736924584073,1.07063336,700.39,699.05,0.28610256]
[1736924585075,1.07063336,700.37,699.05,0.28610256]
[1736924586576,1.07063336,700.36,699.05,0.28610256]
[1736924588672,0.82120303,700.75,699.05,0.28610256]
[1736924588673,1.07063336,700.38,699.05,0.28610256]
[1736924590577,0.82120303,700.75,699.05,0.28610256]
[1736924590578,1.07063336,700.37,699.05,0.28610256]
[1736924593084,1.07063336,700.57,699.05,0.28610256]
[1736924593283,0.28548589,700.56,699.05,0.28610256]
[1736924594079,1.35611925,700.56,699.05,0.28610256]
[1736924596283,1.07063336,700.55,699.05,0.28610256]
[1736924598389,1.07063336,700.53,699.05,0.28610256]
[1736924599489,1.07063336,700.54,699.05,0.28610256]
[1736924601393,0.28548589,700.56,699.05,0.28610256]
[1736924602995,1.35611925,700.56,699.05,0.28610256]
[1736924604091,1.07063336,700.37,699.05,0.28610256]
[1736924605491,0.28548589,700.56,699.05,0.28610256]
[1736924605492,1.07063336,700.38,699.05,0.28610256]
[1736924610687,1.07063336,700.36,699.05,0.28610256]
[1736924611792,0.28548589,700.56,699.05,0.28610256]
[1736924611793,1.07063336,700.28,699.05,0.28610256]
[1736924612791,1.07063336,700.54,699.05,0.28610256]